[Event "Early-Titled-Tuesday-Blitz-April-02-2024"]
[Site "Chess.com"]
[Date "2024.04.02"]
[Round "8"]
[White "LeoLV10"]
[Black "David_George21"]
[Result "1-0"]
[WhiteElo "2507"]
[BlackElo "2344"]
[TimeControl "180+1"]
[EndTime "9:28:25 PDT"]
[Termination "LeoLV10 won on time"]

1. e4 {[%clk 0:02:56.2]} 1... c5 {[%clk 0:02:58.6]} 2. Nf3 {[%clk 0:02:56]} 2...
d6 {[%clk 0:02:58.9]} 3. d4 {[%clk 0:02:56.2]} 3... cxd4 {[%clk 0:02:59.8]} 4.
Nxd4 {[%clk 0:02:57.1]} 4... Nf6 {[%clk 0:03:00.4]} 5. Nc3 {[%clk 0:02:57.5]}
5... Nc6 {[%clk 0:03:01.1]} 6. Bg5 {[%clk 0:02:56.2]} 6... e6 {[%clk 0:03:01.3]}
7. Qd3 {[%clk 0:02:56.6]} 7... Bd7 {[%clk 0:02:59.1]} 8. f4 {[%clk 0:02:56.1]}
8... a6 {[%clk 0:02:48.1]} 9. Nf3 {[%clk 0:02:54.5]} 9... Be7 {[%clk 0:02:35.7]}
10. O-O-O {[%clk 0:02:52.6]} 10... Nb4 {[%clk 0:02:18.8]} 11. Qe3 {[%clk
0:02:42.3]} 11... Qa5 {[%clk 0:02:02]} 12. a3 {[%clk 0:02:41.3]} 12... Nc6
{[%clk 0:02:01.2]} 13. e5 {[%clk 0:02:30.1]} 13... dxe5 {[%clk 0:01:52.2]} 14.
fxe5 {[%clk 0:02:18.1]} 14... Ng4 {[%clk 0:01:51.4]} 15. Qd2 {[%clk 0:02:13.5]}
15... Bxg5 {[%clk 0:01:48.2]} 16. Qxg5 {[%clk 0:02:07.8]} 16... Ngxe5 {[%clk
0:01:28]} 17. Qxg7 {[%clk 0:02:07.7]} 17... O-O-O {[%clk 0:01:27.3]} 18. Qf6
{[%clk 0:02:01.5]} 18... Rhg8 {[%clk 0:01:20.2]} 19. Nxe5 {[%clk 0:01:53.6]}
19... Nxe5 {[%clk 0:01:19.5]} 20. Kb1 {[%clk 0:01:46.8]} 20... Bc6 {[%clk
0:01:17.5]} 21. Rxd8+ {[%clk 0:01:40.7]} 21... Rxd8 {[%clk 0:01:18.4]} 22. Be2
{[%clk 0:01:33.6]} 22... Bxg2 {[%clk 0:01:13.4]} 23. Re1 {[%clk 0:01:32.7]}
23... Rd2 {[%clk 0:00:55.6]} 24. Bxa6 {[%clk 0:01:10.6]} 24... Nf3 {[%clk
0:00:45.6]} 25. Re3 {[%clk 0:01:00.9]} 25... Qxa6 {[%clk 0:00:28]} 26. Rxf3
{[%clk 0:00:56.7]} 26... Bxf3 {[%clk 0:00:23.7]} 27. Qxf3 {[%clk 0:00:57.6]}
27... Rxh2 {[%clk 0:00:19.3]} 28. a4 {[%clk 0:00:39.3]} 28... f5 {[%clk
0:00:17.9]} 29. b3 {[%clk 0:00:31.9]} 29... Qc6 {[%clk 0:00:16.8]} 30. Qe3
{[%clk 0:00:28.9]} 30... f4 {[%clk 0:00:14.4]} 31. Qxf4 {[%clk 0:00:22.8]} 31...
Rh1+ {[%clk 0:00:07.7]} 32. Kb2 {[%clk 0:00:22.6]} 32... Rh3 {[%clk 0:00:04.6]}
33. Qf8+ {[%clk 0:00:22.4]} 33... Kc7 {[%clk 0:00:04.3]} 34. Nb5+ {[%clk
0:00:20.5]} 1-0

[Event "Early-Titled-Tuesday-Blitz-April-02-2024"]
[Site "Chess.com"]
[Date "2024.04.02"]
[Round "8"]
[White "Shuvalov"]
[Black "Fengwi"]
[Result "1-0"]
[WhiteElo "2592"]
[BlackElo "2376"]
[TimeControl "180+1"]
[EndTime "9:28:26 PDT"]
[Termination "Shuvalov won on time"]

1. d4 {[%clk 0:02:53.3]} 1... d5 {[%clk 0:02:59.7]} 2. c4 {[%clk 0:02:52.6]}
2... e6 {[%clk 0:02:59.5]} 3. Nf3 {[%clk 0:02:52]} 3... Nf6 {[%clk 0:02:58.8]}
4. Nc3 {[%clk 0:02:52.2]} 4... Be7 {[%clk 0:02:57.4]} 5. Bf4 {[%clk 0:02:51.9]}
5... O-O {[%clk 0:02:54.6]} 6. e3 {[%clk 0:02:51.8]} 6... Nbd7 {[%clk
0:02:54.1]} 7. c5 {[%clk 0:02:50.3]} 7... c6 {[%clk 0:02:52]} 8. Bd3 {[%clk
0:02:49]} 8... b6 {[%clk 0:02:51.5]} 9. b4 {[%clk 0:02:48.6]} 9... a5 {[%clk
0:02:52]} 10. a3 {[%clk 0:02:48.1]} 10... Ba6 {[%clk 0:02:52.5]} 11. Bxa6 {[%clk
0:02:45.3]} 11... Rxa6 {[%clk 0:02:53.4]} 12. b5 {[%clk 0:02:44.7]} 12... cxb5
{[%clk 0:02:53.9]} 13. c6 {[%clk 0:02:44.8]} 13... Qc8 {[%clk 0:02:54]} 14. c7
{[%clk 0:02:35.1]} 14... b4 {[%clk 0:02:48.8]} 15. Nb5 {[%clk 0:02:35.1]} 15...
bxa3 {[%clk 0:02:00.8]} 16. O-O {[%clk 0:02:25.9]} 16... Ne4 {[%clk 0:01:54.5]}
17. Qd3 {[%clk 0:02:19.7]} 17... Qb7 {[%clk 0:01:38.1]} 18. Rfc1 {[%clk
0:02:18.4]} 18... Rc8 {[%clk 0:01:36.2]} 19. Ne1 {[%clk 0:01:39.5]} 19... g5
{[%clk 0:01:25.8]} 20. Bg3 {[%clk 0:01:32.8]} 20... a4 {[%clk 0:01:13.5]} 21.
Nc2 {[%clk 0:01:27.7]} 21... Nxg3 {[%clk 0:00:54.7]} 22. hxg3 {[%clk 0:01:27.5]}
22... Ra5 {[%clk 0:00:53.8]} 23. Ncxa3 {[%clk 0:01:25.9]} 23... Qa6 {[%clk
0:00:40.5]} 24. Rab1 {[%clk 0:00:21.2]} 24... Bxa3 {[%clk 0:00:10.2]} 25. Qxa3
{[%clk 0:00:22.1]} 25... Rxb5 {[%clk 0:00:10.5]} 26. Rxb5 {[%clk 0:00:22.2]}
26... Qxb5 {[%clk 0:00:10.3]} 27. Qe7 {[%clk 0:00:22.1]} 27... Nf8 {[%clk
0:00:03.1]} 28. Qxg5+ {[%clk 0:00:21.6]} 28... Kh8 {[%clk 0:00:03.1]} 29. Qd8
{[%clk 0:00:21.9]} 29... Qa6 {[%clk 0:00:02.3]} 30. Rc6 {[%clk 0:00:15.4]} 30...
Qa8 {[%clk 0:00:01.5]} 31. Qf6+ {[%clk 0:00:14.6]} 31... Kg8 {[%clk 0:00:02.1]}
32. e4 {[%clk 0:00:13.5]} 1-0

[Event "Early-Titled-Tuesday-Blitz-April-02-2024"]
[Site "Chess.com"]
[Date "2024.04.02"]
[Round "8"]
[White "Sanan_Sjugirov"]
[Black "viviania"]
[Result "0-1"]
[WhiteElo "2985"]
[BlackElo "2911"]
[TimeControl "180+1"]
[EndTime "9:28:29 PDT"]
[Termination "viviania won on time"]

1. d4 {[%clk 0:03:00.9]} 1... d5 {[%clk 0:02:59.4]} 2. c4 {[%clk 0:03:00.3]}
2... Nc6 {[%clk 0:02:59.6]} 3. cxd5 {[%clk 0:02:58.6]} 3... Qxd5 {[%clk
0:02:59.4]} 4. e3 {[%clk 0:02:59.2]} 4... e5 {[%clk 0:02:59.5]} 5. Nc3 {[%clk
0:02:59.8]} 5... Bb4 {[%clk 0:02:59.7]} 6. a3 {[%clk 0:02:59.9]} 6... Bxc3+
{[%clk 0:02:59.7]} 7. bxc3 {[%clk 0:03:00.8]} 7... Nf6 {[%clk 0:02:59.8]} 8. c4
{[%clk 0:02:59.4]} 8... Qd6 {[%clk 0:02:58.2]} 9. d5 {[%clk 0:02:59.5]} 9... Nb8
{[%clk 0:02:53.9]} 10. a4 {[%clk 0:02:58.8]} 10... Bf5 {[%clk 0:02:29.3]} 11.
Ba3 {[%clk 0:02:43]} 11... c5 {[%clk 0:02:29.3]} 12. Ne2 {[%clk 0:02:39.4]}
12... Nbd7 {[%clk 0:02:26.3]} 13. Nc3 {[%clk 0:02:31.7]} 13... O-O {[%clk
0:02:21.6]} 14. Be2 {[%clk 0:02:28.7]} 14... e4 {[%clk 0:02:16.8]} 15. g4 {[%clk
0:02:13.7]} 15... Bg6 {[%clk 0:02:16.8]} 16. h4 {[%clk 0:02:12.4]} 16... h6
{[%clk 0:02:16.3]} 17. Bb2 {[%clk 0:02:08.6]} 17... Rfe8 {[%clk 0:02:04.5]} 18.
Nb5 {[%clk 0:01:39.4]} 18... Qa6 {[%clk 0:02:00.4]} 19. Qd2 {[%clk 0:01:25.3]}
19... Rac8 {[%clk 0:01:59.3]} 20. g5 {[%clk 0:01:16.4]} 20... hxg5 {[%clk
0:01:58.6]} 21. hxg5 {[%clk 0:01:17.3]} 21... Nh7 {[%clk 0:01:56.7]} 22. Bg4
{[%clk 0:01:17.8]} 22... Nhf8 {[%clk 0:01:43.4]} 23. Qc3 {[%clk 0:01:11.1]}
23... Re5 {[%clk 0:01:35.8]} 24. Rh4 {[%clk 0:00:54.4]} 24... f5 {[%clk
0:01:18.4]} 25. gxf6 {[%clk 0:00:20.9]} 25... Qxf6 {[%clk 0:01:18.3]} 26. Bxd7
{[%clk 0:00:21.5]} 26... Nxd7 {[%clk 0:01:16]} 27. Rf4 {[%clk 0:00:22.1]} 27...
Qe7 {[%clk 0:01:00.2]} 28. Nxa7 {[%clk 0:00:20.8]} 28... Rf8 {[%clk 0:00:52.8]}
29. Rxf8+ {[%clk 0:00:19.5]} 29... Qxf8 {[%clk 0:00:52.3]} 30. Nb5 {[%clk
0:00:17.5]} 30... Qf3 {[%clk 0:00:49.9]} 31. Nd6 {[%clk 0:00:02.9]} 31... Bh5
{[%clk 0:00:44]} 32. Qc2 {[%clk 0:00:01.2]} 32... Rg5 {[%clk 0:00:17.8]} 33.
Nxe4 {[%clk 0:00:01.2]} 33... Rg2 {[%clk 0:00:17.7]} 0-1

[Event "Early-Titled-Tuesday-Blitz-April-02-2024"]
[Site "Chess.com"]
[Date "2024.04.02"]
[Round "8"]
[White "ccccvhhhj"]
[Black "Alexchess1984"]
[Result "1-0"]
[WhiteElo "2443"]
[BlackElo "2719"]
[TimeControl "180+1"]
[EndTime "9:28:29 PDT"]
[Termination "ccccvhhhj won by checkmate"]

1. e4 {[%clk 0:03:00.9]} 1... c5 {[%clk 0:02:59.2]} 2. Nf3 {[%clk 0:03:01.3]}
2... Nc6 {[%clk 0:02:58.9]} 3. d4 {[%clk 0:03:01.6]} 3... cxd4 {[%clk
0:02:58.7]} 4. Nxd4 {[%clk 0:03:02.5]} 4... g6 {[%clk 0:02:58.7]} 5. Nc3 {[%clk
0:03:02.2]} 5... Bg7 {[%clk 0:02:57.6]} 6. Be3 {[%clk 0:03:02.9]} 6... Nf6
{[%clk 0:02:53.2]} 7. Nxc6 {[%clk 0:03:03.4]} 7... bxc6 {[%clk 0:02:52.2]} 8. e5
{[%clk 0:03:03.7]} 8... Ng8 {[%clk 0:02:52.1]} 9. Bd4 {[%clk 0:03:03.9]} 9...
Qc7 {[%clk 0:02:51.8]} 10. f4 {[%clk 0:03:03.4]} 10... Nh6 {[%clk 0:02:51.2]}
11. e6 {[%clk 0:02:58]} 11... f6 {[%clk 0:02:45.3]} 12. exd7+ {[%clk 0:02:56]}
12... Bxd7 {[%clk 0:02:46.2]} 13. Bc4 {[%clk 0:02:55.6]} 13... Nf5 {[%clk
0:02:42.8]} 14. Bf2 {[%clk 0:02:48.3]} 14... e6 {[%clk 0:02:37]} 15. O-O {[%clk
0:02:46.9]} 15... O-O {[%clk 0:02:36.3]} 16. Qe2 {[%clk 0:01:50.6]} 16... Rfe8
{[%clk 0:02:34.2]} 17. Rad1 {[%clk 0:01:50.8]} 17... Bf8 {[%clk 0:01:56.9]} 18.
Rd3 {[%clk 0:01:39.3]} 18... c5 {[%clk 0:01:53.8]} 19. Rfd1 {[%clk 0:01:35.1]}
19... Nd4 {[%clk 0:01:52.2]} 20. Qd2 {[%clk 0:01:17.5]} 20... Kg7 {[%clk
0:01:38.8]} 21. Kh1 {[%clk 0:01:14.4]} 21... e5 {[%clk 0:01:35.2]} 22. fxe5
{[%clk 0:01:11.8]} 22... fxe5 {[%clk 0:01:34.4]} 23. Nd5 {[%clk 0:01:02.3]}
23... Qd8 {[%clk 0:01:17.1]} 24. c3 {[%clk 0:01:01.5]} 24... e4 {[%clk
0:01:08.4]} 25. Rxd4 {[%clk 0:00:56.4]} 25... Bd6 {[%clk 0:00:16.2]} 26. Nc7
{[%clk 0:00:29.8]} 26... cxd4 {[%clk 0:00:09.1]} 27. Bxd4+ {[%clk 0:00:30.7]}
27... Be5 {[%clk 0:00:06.3]} 28. Nxa8 {[%clk 0:00:26.2]} 28... Qxa8 {[%clk
0:00:03.2]} 29. Bxe5+ {[%clk 0:00:26.8]} 29... Rxe5 {[%clk 0:00:03.2]} 30. Qxd7+
{[%clk 0:00:27.5]} 30... Kh6 {[%clk 0:00:03.9]} 31. Qh3+ {[%clk 0:00:27]} 31...
Kg7 {[%clk 0:00:03.3]} 32. Rd7+ {[%clk 0:00:24.8]} 32... Kf6 {[%clk 0:00:03.3]}
33. Qh4+ {[%clk 0:00:23]} 33... Rg5 {[%clk 0:00:02.4]} 34. Qf4+ {[%clk
0:00:20.9]} 34... Rf5 {[%clk 0:00:02.4]} 35. Rf7# {[%clk 0:00:21.6]} 1-0

[Event "Early-Titled-Tuesday-Blitz-April-02-2024"]
[Site "Chess.com"]
[Date "2024.04.02"]
[Round "8"]
[White "schachlana"]
[Black "JaackCamel"]
[Result "0-1"]
[WhiteElo "2316"]
[BlackElo "2209"]
[TimeControl "180+1"]
[EndTime "9:28:30 PDT"]
[Termination "JaackCamel won by resignation"]

1. Nf3 {[%clk 0:03:00.9]} 1... d5 {[%clk 0:02:52.2]} 2. e3 {[%clk 0:02:58.6]}
2... e6 {[%clk 0:02:44.3]} 3. c4 {[%clk 0:02:58.6]} 3... c6 {[%clk 0:02:42.9]}
4. b3 {[%clk 0:02:58.3]} 4... Nf6 {[%clk 0:02:42.1]} 5. Bb2 {[%clk 0:02:58.7]}
5... Bd6 {[%clk 0:02:39.5]} 6. Be2 {[%clk 0:02:57.4]} 6... O-O {[%clk
0:02:38.7]} 7. O-O {[%clk 0:02:57.5]} 7... Nbd7 {[%clk 0:02:36.2]} 8. d3 {[%clk
0:02:54.6]} 8... b6 {[%clk 0:02:32.8]} 9. Nbd2 {[%clk 0:02:54.2]} 9... Bb7
{[%clk 0:02:31.9]} 10. Rc1 {[%clk 0:02:54.9]} 10... Rc8 {[%clk 0:02:29.5]} 11.
h3 {[%clk 0:02:53]} 11... Qe7 {[%clk 0:02:27.7]} 12. Re1 {[%clk 0:02:49.9]}
12... h6 {[%clk 0:02:27.2]} 13. e4 {[%clk 0:02:44.8]} 13... e5 {[%clk
0:02:02.6]} 14. Nh4 {[%clk 0:02:29.7]} 14... Rfe8 {[%clk 0:01:53.5]} 15. Nf5
{[%clk 0:02:29.4]} 15... Qf8 {[%clk 0:01:53.4]} 16. cxd5 {[%clk 0:02:16.6]}
16... cxd5 {[%clk 0:01:33.8]} 17. Rxc8 {[%clk 0:02:10.6]} 17... Rxc8 {[%clk
0:01:27.6]} 18. exd5 {[%clk 0:02:10.7]} 18... Bxd5 {[%clk 0:01:21.5]} 19. Nxd6
{[%clk 0:02:06.5]} 19... Qxd6 {[%clk 0:01:19.9]} 20. Nc4 {[%clk 0:02:07.1]}
20... Qc7 {[%clk 0:01:09.5]} 21. Bf3 {[%clk 0:02:03]} 21... Re8 {[%clk
0:01:03.5]} 22. Bxd5 {[%clk 0:01:55.3]} 22... Nxd5 {[%clk 0:01:02.7]} 23. Qf3
{[%clk 0:01:54.3]} 23... Nf4 {[%clk 0:00:23.9]} 24. d4 {[%clk 0:01:38.2]} 24...
Ng6 {[%clk 0:00:18.7]} 25. d5 {[%clk 0:01:30.5]} 25... Nc5 {[%clk 0:00:17.1]}
26. d6 {[%clk 0:01:29]} 26... Qd7 {[%clk 0:00:16.9]} 27. a4 {[%clk 0:01:23.9]}
27... e4 {[%clk 0:00:16.7]} 28. Qc3 {[%clk 0:01:22.7]} 28... f6 {[%clk
0:00:16.1]} 29. Rd1 {[%clk 0:01:14.6]} 29... Nf4 {[%clk 0:00:15.8]} 30. Qe3
{[%clk 0:01:06.9]} 30... Nfd3 {[%clk 0:00:14.6]} 31. Bc3 {[%clk 0:00:50.7]}
31... Nxb3 {[%clk 0:00:12.9]} 32. f3 {[%clk 0:00:42.5]} 32... Nbc5 {[%clk
0:00:12.2]} 33. Qd4 {[%clk 0:00:19.8]} 33... Qxa4 {[%clk 0:00:10.3]} 34. Ba1
{[%clk 0:00:15.2]} 34... Qxd1+ {[%clk 0:00:09.6]} 35. Kh2 {[%clk 0:00:14.9]}
35... Nf2 {[%clk 0:00:07.1]} 36. Qd5+ {[%clk 0:00:15.2]} 36... Qxd5 {[%clk
0:00:06.3]} 0-1

[Event "Early-Titled-Tuesday-Blitz-April-02-2024"]
[Site "Chess.com"]
[Date "2024.04.02"]
[Round "8"]
[White "Zhigalko_Sergei"]
[Black "Suleyman_Chess06"]
[Result "1-0"]
[WhiteElo "2885"]
[BlackElo "2772"]
[TimeControl "180+1"]
[EndTime "9:28:31 PDT"]
[Termination "Zhigalko_Sergei won by resignation"]

1. e4 {[%clk 0:03:00.9]} 1... e6 {[%clk 0:03:00.2]} 2. d4 {[%clk 0:02:59.3]}
2... d5 {[%clk 0:03:01.1]} 3. e5 {[%clk 0:02:59.6]} 3... c5 {[%clk 0:03:01.1]}
4. c3 {[%clk 0:02:58.8]} 4... Nc6 {[%clk 0:03:01.7]} 5. Nf3 {[%clk 0:02:58.9]}
5... Qb6 {[%clk 0:03:02.2]} 6. Bd3 {[%clk 0:02:57.9]} 6... cxd4 {[%clk
0:03:02.4]} 7. O-O {[%clk 0:02:58.1]} 7... Bd7 {[%clk 0:03:02.3]} 8. Re1 {[%clk
0:02:58.2]} 8... Nh6 {[%clk 0:03:02.1]} 9. c4 {[%clk 0:02:50.4]} 9... dxc4
{[%clk 0:03:02.1]} 10. Bxc4 {[%clk 0:02:50.7]} 10... d3 {[%clk 0:03:03]} 11.
Bxd3 {[%clk 0:02:07.1]} 11... Bc5 {[%clk 0:03:01.9]} 12. Qe2 {[%clk 0:02:06.2]}
12... Nf5 {[%clk 0:02:51]} 13. Nc3 {[%clk 0:01:57.3]} 13... Nfd4 {[%clk
0:02:42.1]} 14. Nxd4 {[%clk 0:01:57.2]} 14... Nxd4 {[%clk 0:02:42.8]} 15. Qg4
{[%clk 0:01:54.8]} 15... h5 {[%clk 0:02:36]} 16. Qg5 {[%clk 0:01:42.5]} 16...
Nc2 {[%clk 0:01:59]} 17. Bxc2 {[%clk 0:01:16.9]} 17... Bxf2+ {[%clk 0:01:58]}
18. Kf1 {[%clk 0:01:07.7]} 18... Bxe1 {[%clk 0:01:57.4]} 19. Kxe1 {[%clk
0:01:08.6]} 19... Qg1+ {[%clk 0:01:57.8]} 20. Ke2 {[%clk 0:01:08.5]} 20... Bc6
{[%clk 0:01:47.1]} 21. Be4 {[%clk 0:00:54.8]} 21... Rd8 {[%clk 0:01:36.4]} 22.
Qxd8+ {[%clk 0:00:54.4]} 22... Kxd8 {[%clk 0:01:31.1]} 23. Bg5+ {[%clk
0:00:54.9]} 23... f6 {[%clk 0:01:31.6]} 24. Rxg1 {[%clk 0:00:44.8]} 24... fxg5
{[%clk 0:01:28.7]} 25. Bxc6 {[%clk 0:00:42.3]} 25... bxc6 {[%clk 0:01:29.6]} 26.
Rd1+ {[%clk 0:00:41.9]} 26... Ke7 {[%clk 0:01:26.7]} 27. Rd6 {[%clk 0:00:36.4]}
27... Rb8 {[%clk 0:01:20.1]} 28. b3 {[%clk 0:00:34.9]} 28... Rb6 {[%clk
0:01:20.4]} 29. Kd3 {[%clk 0:00:28.4]} 29... Ra6 {[%clk 0:01:17.1]} 30. b4
{[%clk 0:00:22.4]} 30... Rb6 {[%clk 0:01:13.8]} 31. Kc4 {[%clk 0:00:21.2]} 31...
Ra6 {[%clk 0:01:11.1]} 32. a4 {[%clk 0:00:20.9]} 32... Rb6 {[%clk 0:01:11.5]}
33. a5 {[%clk 0:00:21.1]} 33... Rb8 {[%clk 0:01:10.2]} 34. Rxc6 {[%clk
0:00:21.2]} 34... Kd7 {[%clk 0:01:10.1]} 35. Rd6+ {[%clk 0:00:20.9]} 35... Ke7
{[%clk 0:01:10]} 36. Ne4 {[%clk 0:00:21.8]} 36... g4 {[%clk 0:01:07.8]} 37. Nc5
{[%clk 0:00:20.6]} 37... Rf8 {[%clk 0:01:06.5]} 38. Rd7+ {[%clk 0:00:20.7]}
38... Ke8 {[%clk 0:01:06.7]} 39. Rxa7 {[%clk 0:00:21]} 39... Rf2 {[%clk
0:01:07]} 40. Rxg7 {[%clk 0:00:18.9]} 40... Rxg2 {[%clk 0:01:07.1]} 41. a6
{[%clk 0:00:09.8]} 41... Ra2 {[%clk 0:01:05.7]} 42. b5 {[%clk 0:00:08.1]} 42...
h4 {[%clk 0:01:04.2]} 43. Rxg4 {[%clk 0:00:07]} 43... Kf7 {[%clk 0:01:03.3]} 44.
b6 {[%clk 0:00:06.7]} 44... Rxh2 {[%clk 0:01:00.8]} 45. b7 {[%clk 0:00:06.3]}
45... Rc2+ {[%clk 0:01:00.9]} 46. Kb3 {[%clk 0:00:05.9]} 46... Rxc5 {[%clk
0:01:01.3]} 47. b8=Q {[%clk 0:00:06.3]} 47... h3 {[%clk 0:01:00.3]} 48. Qb7+
{[%clk 0:00:06.1]} 48... Kf8 {[%clk 0:00:59.9]} 49. a7 {[%clk 0:00:05.9]} 1-0

[Event "Early-Titled-Tuesday-Blitz-April-02-2024"]
[Site "Chess.com"]
[Date "2024.04.02"]
[Round "8"]
[White "Incognito_Knight"]
[Black "ChessFighter_2011"]
[Result "0-1"]
[WhiteElo "2731"]
[BlackElo "2916"]
[TimeControl "180+1"]
[EndTime "9:28:34 PDT"]
[Termination "ChessFighter_2011 won on time"]

1. e4 {[%clk 0:02:57.1]} 1... c5 {[%clk 0:02:59.2]} 2. d4 {[%clk 0:02:55.1]}
2... cxd4 {[%clk 0:02:58.4]} 3. Qxd4 {[%clk 0:02:56]} 3... Nc6 {[%clk
0:02:58.3]} 4. Qd3 {[%clk 0:02:56.3]} 4... g6 {[%clk 0:02:57.5]} 5. Nc3 {[%clk
0:02:55.5]} 5... Bg7 {[%clk 0:02:57.8]} 6. Nf3 {[%clk 0:02:55.8]} 6... d6 {[%clk
0:02:58.4]} 7. Be2 {[%clk 0:02:56.1]} 7... Nf6 {[%clk 0:02:58.9]} 8. O-O {[%clk
0:02:56.5]} 8... O-O {[%clk 0:02:59.2]} 9. Nd5 {[%clk 0:02:56.9]} 9... Nd7
{[%clk 0:02:59.3]} 10. c3 {[%clk 0:02:56.3]} 10... a5 {[%clk 0:02:58.9]} 11. Bg5
{[%clk 0:02:49.2]} 11... Nc5 {[%clk 0:02:59.2]} 12. Qe3 {[%clk 0:02:45.7]} 12...
Ne6 {[%clk 0:02:59.2]} 13. Bh4 {[%clk 0:02:38]} 13... h6 {[%clk 0:02:59.5]} 14.
Rad1 {[%clk 0:02:32.1]} 14... a4 {[%clk 0:02:47.9]} 15. a3 {[%clk 0:02:29.9]}
15... Ra5 {[%clk 0:02:47.3]} 16. h3 {[%clk 0:02:22.5]} 16... Bd7 {[%clk
0:02:43.8]} 17. Rfe1 {[%clk 0:02:17.8]} 17... Rc5 {[%clk 0:02:32.8]} 18. Bd3
{[%clk 0:02:00.6]} 18... Nc7 {[%clk 0:02:25.7]} 19. Bc2 {[%clk 0:01:49.2]} 19...
g5 {[%clk 0:02:13.5]} 20. Bg3 {[%clk 0:01:44.8]} 20... Ne6 {[%clk 0:02:01.1]}
21. e5 {[%clk 0:01:39.4]} 21... Qa5 {[%clk 0:01:55.5]} 22. Qe4 {[%clk
0:01:27.6]} 22... Rc8 {[%clk 0:01:29.2]} 23. exd6 {[%clk 0:01:26.2]} 23... Nf8
{[%clk 0:01:01.7]} 24. dxe7 {[%clk 0:01:02.5]} 24... Ng6 {[%clk 0:00:59.7]} 25.
Bd6 {[%clk 0:00:41.2]} 25... Rb5 {[%clk 0:00:59.1]} 26. Nc7 {[%clk 0:00:30.6]}
26... Rxb2 {[%clk 0:00:46.5]} 27. e8=Q+ {[%clk 0:00:26.3]} 27... Bxe8 {[%clk
0:00:46.6]} 28. Nxe8 {[%clk 0:00:27.2]} 28... Bxc3 {[%clk 0:00:41.9]} 29. Re2
{[%clk 0:00:14.8]} 29... Bg7 {[%clk 0:00:37.7]} 30. Rd5 {[%clk 0:00:11.5]} 30...
Qc3 {[%clk 0:00:34.7]} 31. Nxg7 {[%clk 0:00:04.9]} 31... Kxg7 {[%clk 0:00:30.5]}
32. h4 {[%clk 0:00:04.6]} 32... g4 {[%clk 0:00:29.8]} 33. Ne5 {[%clk 0:00:02.5]}
33... Ncxe5 {[%clk 0:00:29.2]} 34. Bxe5+ {[%clk 0:00:02.3]} 34... Nxe5 {[%clk
0:00:29.5]} 35. Rxe5 {[%clk 0:00:02.9]} 35... Rxc2 {[%clk 0:00:27.7]} 36. Qxg4+
{[%clk 0:00:03.3]} 36... Kf8 {[%clk 0:00:25.9]} 37. Rxc2 {[%clk 0:00:03.1]}
37... Qa1+ {[%clk 0:00:25.4]} 0-1

[Event "Early-Titled-Tuesday-Blitz-April-02-2024"]
[Site "Chess.com"]
[Date "2024.04.02"]
[Round "8"]
[White "Kushch_Nikolai"]
[Black "gorgeous1083"]
[Result "0-1"]
[WhiteElo "2415"]
[BlackElo "2233"]
[TimeControl "180+1"]
[EndTime "9:28:40 PDT"]
[Termination "gorgeous1083 won by resignation"]

1. Nf3 {[%clk 0:02:59.2]} 1... d5 {[%clk 0:02:59.8]} 2. d4 {[%clk 0:02:58.5]}
2... Nf6 {[%clk 0:02:59.9]} 3. c4 {[%clk 0:02:58.6]} 3... e6 {[%clk 0:03:00.1]}
4. Nc3 {[%clk 0:02:58.7]} 4... Be7 {[%clk 0:02:59.9]} 5. Bg5 {[%clk 0:02:58.4]}
5... O-O {[%clk 0:03:00.2]} 6. e3 {[%clk 0:02:58.1]} 6... c6 {[%clk 0:02:59.9]}
7. Rc1 {[%clk 0:02:56.8]} 7... Nbd7 {[%clk 0:02:59.6]} 8. Bd3 {[%clk 0:02:55.9]}
8... b6 {[%clk 0:02:57.7]} 9. O-O {[%clk 0:02:55.2]} 9... Bb7 {[%clk 0:02:58.3]}
10. Qc2 {[%clk 0:02:47.3]} 10... h6 {[%clk 0:02:57.4]} 11. Bh4 {[%clk
0:02:43.7]} 11... Rc8 {[%clk 0:02:57.3]} 12. Bg3 {[%clk 0:02:34.4]} 12... c5
{[%clk 0:02:56.1]} 13. cxd5 {[%clk 0:02:29.4]} 13... Nxd5 {[%clk 0:02:51.8]} 14.
Nxd5 {[%clk 0:02:25.6]} 14... Bxd5 {[%clk 0:02:49.6]} 15. Qe2 {[%clk 0:02:21.2]}
15... Ba8 {[%clk 0:02:38.6]} 16. Rfd1 {[%clk 0:02:18.3]} 16... cxd4 {[%clk
0:02:37.5]} 17. Nxd4 {[%clk 0:02:14.9]} 17... Bf6 {[%clk 0:02:26.2]} 18. Ba6
{[%clk 0:02:09.7]} 18... Rxc1 {[%clk 0:02:15.9]} 19. Rxc1 {[%clk 0:02:09.4]}
19... Nc5 {[%clk 0:02:14.9]} 20. Bc4 {[%clk 0:02:02.7]} 20... Qc8 {[%clk
0:01:51]} 21. Bd3 {[%clk 0:01:52.7]} 21... Qb7 {[%clk 0:01:47]} 22. f3 {[%clk
0:01:42.9]} 22... Rd8 {[%clk 0:01:39.9]} 23. Bb1 {[%clk 0:01:26]} 23... Bxd4
{[%clk 0:01:33]} 24. exd4 {[%clk 0:01:25.7]} 24... Rxd4 {[%clk 0:01:30]} 25. Bf2
{[%clk 0:01:26.2]} 25... Rd5 {[%clk 0:01:21.6]} 26. b4 {[%clk 0:01:25]} 26...
Nd7 {[%clk 0:00:55.3]} 27. Be4 {[%clk 0:01:24.7]} 27... Qb8 {[%clk 0:00:42.3]}
28. Bxd5 {[%clk 0:01:22.9]} 28... Bxd5 {[%clk 0:00:42.4]} 29. Bg3 {[%clk
0:01:20.6]} 29... Qf8 {[%clk 0:00:40.3]} 30. a3 {[%clk 0:01:19.3]} 30... Nf6
{[%clk 0:00:34.4]} 31. Be5 {[%clk 0:01:16.9]} 31... Nd7 {[%clk 0:00:30.4]} 32.
Bd4 {[%clk 0:01:16]} 32... a5 {[%clk 0:00:29.2]} 33. Rc7 {[%clk 0:01:13.8]}
33... Qd6 {[%clk 0:00:24.6]} 34. Qc2 {[%clk 0:01:03.2]} 34... axb4 {[%clk
0:00:17.5]} 35. Rc8+ {[%clk 0:01:01.9]} 35... Nf8 {[%clk 0:00:14.8]} 36. axb4
{[%clk 0:00:53.7]} 36... Bb7 {[%clk 0:00:14.1]} 37. Rc4 {[%clk 0:00:46.9]} 37...
Ba6 {[%clk 0:00:11.1]} 38. b5 {[%clk 0:00:42.4]} 38... Bxb5 {[%clk 0:00:11.3]}
39. Bxg7 {[%clk 0:00:25.9]} 39... Bxc4 {[%clk 0:00:06.2]} 40. Bxf8 {[%clk
0:00:24.2]} 40... Qd4+ {[%clk 0:00:03.8]} 0-1